fUSD/lending_fUSD_20240518
["ID","MTS","AMOUNT","RATE_DAILY","PERIOD"]
[327339555,1715997040014,-150.65,0.00020436,2]
[327339556,1715997040024,-150.65,0.00020436,2]
[327339558,1715997040034,-150.65,0.00020436,2]
[327339560,1715997040044,-150.65,0.00020436,2]
[327339562,1715997040058,-150.65,0.00020436,2]
[327339564,1715997040068,-150.65,0.00020436,2]
[327339566,1715997040077,-150.65,0.00020436,2]
[327339568,1715997040086,-150.65,0.00020436,2]
[327339570,1715997040098,-150.65,0.00020436,2]
[327339572,1715997040108,-150.65,0.00020436,2]
[327339574,1715997040118,-150.65,0.00020436,2]
[327339576,1715997040128,-150.0,0.00020438,2]
[327339577,1715997040139,-150.0,0.00020438,2]
[327339579,1715997040148,-150.0,0.00020438,2]
[327339581,1715997040158,-150.0,0.00020438,2]
[327339583,1715997040168,-150.0,0.00020438,2]
[327339585,1715997040178,-150.0,0.00020438,2]
[327339587,1715997040188,-150.0,0.00020438,2]
[327339589,1715997040197,-150.0,0.00020438,2]
[327339591,1715997040207,-150.0,0.00020438,2]
[327339593,1715997040216,-709.55022081,0.00020444,2]
[327339595,1715997040226,-623.96340847,0.00020444,2]
[327339597,1715997040235,-318.26122878,0.00020444,2]
[327339598,1715997040244,-306.05450279,0.00020444,2]
[327339600,1715997040254,-2331.26509626,0.00020444,2]
[327339602,1715997040264,-155.21217556,0.00020444,2]
[327339604,1715997040275,-410.84154775,0.00020444,2]
[327339606,1715997040284,-194.60887963,0.00020444,2]
[327339608,1715997040294,-5000.0,0.00020444,2]
[327339610,1715997040303,-1000.0,0.00020444,2]
[327339612,1715997040313,-155.31014405,0.00020444,2]
[327339614,1715997040323,-714.67643389,0.00020445,2]
[327339616,1715997040333,-451.08452733,0.00020445,2]
[327339617,1715997040342,-3064.49868291,0.00020445,2]
[327339619,1715997040352,-622821.24065129,0.00020446,2]
[327339621,1715997040362,-13673.32126757,0.00020446,2]
[327339623,1715997040372,-740925.49356178,0.00020446,2]
[327339651,1715997040660,-535565.71030484,0.00020446,2]
[327339653,1715997040672,-258.67387661,0.00020446,2]
[327339655,1715997040684,-3471.76585,0.00020446,2]
[327339657,1715997040700,-4073.10741108,0.00020446,2]
[327339659,1715997040711,-7332.56230694,0.00020446,2]
[327339667,1715997040789,-2640.44909535,0.00019194,2]
[327339669,1715997040800,-39.82706507,0.00019194,2]
[327339671,1715997040810,-1537.11087113,0.00020446,2]
[327339674,1715997040829,-2304.10788517,0.00020446,2]
[327339676,1715997040840,-2377.98218144,0.00020446,2]
[327339679,1715997040855,-775.96756147,0.00020446,2]
[327339681,1715997040866,-312.16935958,0.00020446,2]
[327339682,1715997040877,-20000.0,0.00020446,2]
[327339683,1715997040900,-3956.3585948,0.00020446,2]
[327339684,1715997040914,-2692.8068556,0.00020446,2]
[327339685,1715997040927,-822.22346696,0.00020446,2]
[327339907,1715997043022,-342.3,0.00020446,2]
[327339909,1715997043034,-835.2283133,0.00020446,2]
[327339911,1715997043046,-596.8060094,0.00020446,2]
[327339913,1715997043061,-1049.700003,0.00020446,2]
[327339915,1715997043072,-450.180002,0.00020446,2]
[327339927,1715997043169,-927.2560837,0.00020446,2]
[327339929,1715997043181,-1502.14020389,0.00020446,2]
[327339931,1715997043192,-1955.28833964,0.00020446,2]
[327339933,1715997043204,-333914.8134686,0.00020446,2]
[327339936,1715997043215,-337.97513366,0.00020446,2]
[327339948,1715997043323,-329.70014336,0.00020446,2]
[327339951,1715997043336,-453.999994,0.00020446,2]
[327339953,1715997043347,-421.77635335,0.00020446,2]
[327339955,1715997043358,-6052.53318049,0.00020446,2]
[327339957,1715997043370,-5000.0,0.00020446,2]
[327339960,1715997043381,-1017.6830018,0.00020446,2]
[327339962,1715997043392,-1176.28360426,0.00020446,2]
[327339967,1715997043427,155.0,6.94e-05,2]
[327339974,1715997043484,-880.36175698,0.00020446,2]
[327340002,1715997044894,3272.69476993,6.94e-05,2]
[327340003,1715997045954,-569.64,0.00020446,2]
[327340004,1715997045967,-13386.80956315,0.00020446,2]
[327340005,1715997046170,-30.06612451,0.00017259,2]
[327340006,1715997046181,-308.25,0.00017259,2]
[327340007,1715997046192,-603.90060665,0.00017259,2]
[327340008,1715997046201,-2678.35712423,0.00020446,2]
[327340009,1715997046212,-10797.70756412,0.00020446,2]
[327340010,1715997046225,-5102.48764898,0.00020446,2]
[327340011,1715997046309,-714.2364726,0.00020446,2]
[327340012,1715997046321,-415.0,0.00020446,2]
[327340013,1715997046333,-254.86173603,0.00020446,2]
[327340014,1715997046344,-1362.98079444,0.00020446,2]
[327340015,1715997046356,-470450.724411,0.00020446,2]
[327340016,1715997046367,-431.60659171,0.00020446,2]
[327340017,1715997048811,955.63540214,6.593e-05,2]
[327340019,1715997066826,959.91364377,6.94e-05,2]
[327340020,1715997070725,955.63540214,6.263e-05,2]
[327340021,1715997086731,885.45834011,6.263e-05,2]
[327340022,1715997319378,-300.44318508,9.973e-05,2]
[327340023,1715997319402,-1857.19618416,0.00010275,2]
[327340024,1715997319424,-150.0,0.00010276,2]
[327340025,1715997319449,-17692.36063076,0.00010277,2]
[327340027,1715997395279,-1799.04242336,0.00010277,2]
[327340028,1715997395302,-180.15034048,0.00010277,2]
[327340029,1715997395327,-548.83224006,0.00010277,2]
[327340030,1715997395349,-7471.9749961,0.00010278,2]
[327340059,1715998232234,-354.12,8.979e-05,2]
[327340061,1715998232244,-676.68826547,0.00010166,2]
[327340064,1715998232257,-3552.50173453,0.00010166,2]
[327340066,1715998232267,-534.49948229,0.00010176,2]
[327340069,1715998232276,-154.20152178,0.00010177,2]
[327340071,1715998232285,-154.20152172,0.00010231,2]
[327340073,1715998232295,-500.0,0.00010256,2]
[327340075,1715998232304,-171.3310329,0.00010276,2]
[327340077,1715998232313,-549.80727632,0.00010277,2]
[327340079,1715998232323,-4869.6372039,0.00010278,2]
[327340081,1715998232332,-409.64950278,0.00010278,2]
[327340082,1715998232341,-180.15034048,0.00010278,2]
[327340084,1715998232350,-2367.52363385,0.00010278,2]
[327340087,1715998232361,-325.09234905,0.00010278,2]
[327340089,1715998232372,-3971.07024,0.00010278,2]
[327340091,1715998232383,-2522.64994428,0.00010278,2]
[327340092,1715998232395,-432.92,0.00010278,2]
[327340093,1715998232406,-339.7200004,0.00010278,2]
[327340094,1715998232417,-2868.15296148,0.00010278,2]
[327340095,1715998232428,-259.772608,0.00010278,2]
[327340096,1715998232439,-4386.35969042,0.00010278,2]
[327340097,1715998232450,-6900.0,0.00010278,2]
[327340098,1715998232532,-1557.92488276,0.00010278,2]
[327340099,1715998232544,-507.88036358,0.00010278,2]
[327340100,1715998232555,-363.6,0.00010278,2]
[327340101,1715998232566,-6936.01689433,0.00010278,2]
[327340102,1715998232579,-5792.33143784,0.00010278,2]
[327340103,1715998232592,-31713.38660243,0.00010278,2]
[327340120,1715998238237,-57554.4849607,0.00010278,2]
[327340121,1715998238247,-154.20152172,0.00010285,2]
[327340122,1715998238256,-154.20152172,0.00010339,2]
[327340123,1715998238265,-6990.55,0.00010339,2]
[327340124,1715998238274,-845.12,0.00010339,2]
[327340125,1715998238283,-499.99,0.00010339,2]
[327340126,1715998238292,-154.20152172,0.00010392,2]
[327340127,1715998238301,-271.02278993,0.000104,2]
[327340128,1715998238311,-158.04094424,0.000104,2]
[327340129,1715998238319,-154.20152172,0.00010446,2]
[327340130,1715998238330,-299.99,0.00010446,2]
[327340131,1715998238339,-46918.82,0.00010475,2]
[327340132,1715998238347,-1982328.83509888,0.000105,2]
[327340133,1715998238357,-154.20152172,0.000105,2]
[327340134,1715998238366,-250.0,0.00010536,2]
[327340135,1715998238375,-3944.75297174,0.000106,2]
[327340136,1715998238384,-178.12,0.00010959,2]
[327340137,1715998238393,-150.0,0.00010959,2]
[327340138,1715998238403,-5315.4,0.00010959,2]
[327340139,1715998238412,-7567.85,0.00010959,2]
[327340140,1715998238423,-804.88657728,0.00011,2]
[327340141,1715998238431,-751.08630273,0.00011,2]
[327340142,1715998238441,-150.20476875,0.00011,2]
[327340143,1715998238461,-250.0,0.00011052,2]
[327340144,1715998238471,-1500.0,0.00011162,2]
[327340145,1715998238480,-411.9,0.00011191,2]
[327340146,1715998238490,-354.12,0.00011243,2]
[327340147,1715998238503,-1616.7,0.00011472,2]
[327340148,1715998238514,-19608.90253833,0.000116,2]
[327340149,1715998238523,-496.74,0.00011674,2]
[327340150,1715998238535,-2604.04947463,0.00012,2]
[327340151,1715998238544,-300.0,0.00012,2]
[327340152,1715998238554,-167.97,0.00012033,2]
[327340153,1715998238564,-180.0,0.00012175,2]
[327340154,1715998238576,-155.0,0.000125,2]
[327340155,1715998238586,-411.9,0.0001259,2]
[327340156,1715998238597,-300.0,0.0001289,2]
[327340157,1715998238606,-362.48389235,0.00013,2]
[327340158,1715998238617,-457.62510194,0.00013,2]
[327340159,1715998238626,-174.76,0.0001337,15]
[327340160,1715998238636,-100000.0,0.0001337,2]
[327340161,1715998238645,-10470.3034,0.0001337,2]
[327340162,1715998238655,-24950.178,0.0001337,2]
[327340164,1715998238664,-1000.0,0.00013425,2]
[327340166,1715998238673,-193.62,0.00013485,2]
[327340169,1715998238683,-354.12,0.00013507,2]
[327340172,1715998238692,-271.02278993,0.00013576,2]
[327340174,1715998238701,-157.03,0.00013587,2]
[327340177,1715998238710,-157.03,0.00013628,2]
[327340179,1715998238720,-157.03,0.0001367,2]
[327340181,1715998238729,-250.0,0.00013699,2]
[327340183,1715998238738,-500.0,0.00013699,2]
[327340185,1715998238747,-200.0,0.00013699,2]
[327340187,1715998238756,-2751.0,0.00013699,2]
[327340189,1715998238766,-157.03,0.00013711,2]
[327340191,1715998238775,-157.03,0.00013753,2]
[327340193,1715998238784,-157.03,0.00013795,2]
[327340195,1715998238793,-157.03,0.00013836,2]
[327340197,1715998238802,-157.03,0.00013878,2]
[327340199,1715998238811,-157.03,0.0001392,2]
[327340201,1715998238822,-157.03,0.00013961,2]
[327340203,1715998238831,-449.74,0.00013973,2]
[327340205,1715998238840,-411.9,0.00013989,2]
[327340207,1715998238849,-1993.574004,0.00014,2]
[327340208,1715998238858,-157.03,0.00014003,2]
[327340209,1715998238868,-157.03,0.00014045,2]
[327340210,1715998238878,-157.03,0.00014086,2]
[327340211,1715998238887,-150.0,0.00014087,3]
[327340212,1715998238896,-150.0,0.00014087,2]
[327340213,1715998238905,-157.03,0.00014128,2]
[327340214,1715998238914,-157.03,0.0001417,2]
[327340215,1715998238923,-157.03,0.00014211,2]
[327340216,1715998238932,-1616.7,0.00014212,2]
[327340217,1715998238942,-157.03,0.00014253,2]
[327340218,1715998238951,-157.03,0.00014294,2]
[327340219,1715998238960,-3944.75297171,0.00014399,2]
[327340220,1715998238970,-252.30363368,0.00014849,2]
[327340221,1715998238979,-500.0,0.00014896,2]
[327340222,1715998238988,-4290.08292561,0.00014999,2]
[327340223,1715998238997,-5000.0,0.00014999,2]
[327340225,1715998239007,-71893.43607137,0.00015,2]
[327340227,1715998239016,-2002.09608043,0.00015,2]
[327340229,1715998239026,-200.0,0.00015,2]
[327340231,1715998239035,-257.58397251,0.00015,2]
[327340233,1715998239045,-8090.61214289,0.00015,2]
[327340235,1715998239055,-1187.56410309,0.00015,2]
[327340237,1715998239064,-4895.0,0.00015,2]
[327340240,1715998239078,-300.0,0.00015068,2]
[327340242,1715998239088,-157.21497591,0.00015069,2]
[327340244,1715998239099,-159.94,0.00015232,2]
[327340246,1715998239108,-411.9,0.00015388,2]
[327340248,1715998239118,-162.74553452,0.00015537,2]
[327340250,1715998239128,-157.21497591,0.00015722,2]
[327340252,1715998239138,-354.12,0.0001577,2]
[327340254,1715998239148,-150.79375314,0.00015785,2]
[327340256,1715998239158,-152.14642822,0.000161,2]
[327340258,1715998239169,-300.0,0.00016438,2]
[327340260,1715998239179,-2354.59134543,0.000165,2]
[327340262,1715998239189,-157.21497591,0.0001652,2]
[327340264,1715998239199,-153.72189485,0.00016654,2]
[327340266,1715998239209,-271.02278993,0.00016752,2]
[327340268,1715998239219,-411.9,0.00016787,2]
[327340270,1715998239229,-193.62,0.00016857,2]
[327340272,1715998239239,-1616.7,0.00016952,2]
[327340274,1715998239249,-961.6,0.00016966,2]
[327340276,1715998239259,-158.04094423,0.00016983,2]
[327340278,1715998239269,-155.0,0.00017,2]
[327340280,1715998239278,-150.0,0.00017206,2]
[327340282,1715998239288,-162.74553452,0.00017272,2]
[327340284,1715998239298,-157.21497591,0.0001772,2]
[327340286,1715998239307,-800.0,0.00017973,2]
[327340288,1715998239317,-155.0,0.00018,2]
[327340290,1715998239329,-354.12,0.00018034,2]
[327340310,1715998239520,-3944.75297171,0.00018198,2]
[327340312,1715998239530,-152.14642822,0.00018252,2]
[327340314,1715998239542,-162.91,0.00018329,2]
[327340316,1715998239552,-154.6980812,0.00018456,2]
[327340318,1715998239561,-500.0,0.000185,2]
[327340320,1715998239572,-23424.18038681,0.00019,5]
[327340322,1715998239581,-961.6,0.00019086,2]
[327340324,1715998239591,-162.74553452,0.0001919,2]
[327340326,1715998239600,-23257.84,0.00019339,2]
[327340328,1715998239609,-365.54,0.00019339,2]
[327340330,1715998239619,-19999.99,0.00019339,2]
[327340332,1715998239628,-4417.99,0.00019339,2]
[327340334,1715998239639,-167.0,0.0001949,2]
[327340336,1715998239648,-906.16647357,0.000195,2]
[327340338,1715998239658,-300.0,0.000199,2]
[327340340,1715998239667,-271.02278993,0.00019927,2]
[327340342,1715998239677,-162.74553452,0.00019951,2]
[327340344,1715998239687,-156.87,0.00019999,2]
[327340346,1715998239697,-2057.0,0.0002,7]
[327340348,1715998239706,-155.0,0.0002,2]
[327340350,1715998239715,-1772.44606718,0.0002,2]
[327340352,1715998239725,-6236.08966478,0.0002,2]
[327340354,1715998239735,-1262.30364489,0.0002,2]
[327340356,1715998239744,-5182.97271811,0.0002,2]
[327340358,1715998239753,-861.79098037,0.0002,2]
[327340360,1715998239763,-155.0,0.0002,2]
[327340362,1715998239773,-627.57712,0.0002,2]
[327340364,1715998239782,-12675.09418302,0.0002,2]
[327340366,1715998239791,-156.87,0.00020019,2]
[327340368,1715998239801,-156.87,0.00020039,2]
[327340370,1715998239811,-156.87,0.00020059,2]
[327340372,1715998239822,-156.87,0.00020079,2]
[327340374,1715998239831,-156.87,0.00020099,2]
[327340376,1715998239841,-1567.83900626,0.00020138,2]
[327340378,1715998239852,-193.62,0.00020228,2]
[327340380,1715998239861,-354.12,0.00020298,2]
[327340382,1715998239871,-6000.0,0.000203,4]
[327340384,1715998239880,-150.0,0.00020326,5]
[327340386,1715998239889,-39164.3981,0.00020346,2]
[327340388,1715998239899,-214.0,0.00020346,2]
[327340390,1715998239909,-609.846,0.00020346,2]
[327340392,1715998239918,-171.51955214,0.00020378,2]
[327340394,1715998239928,-155.0,0.00020444,2]
[327340396,1715998239938,-410.06659556,0.00020444,2]
[327340398,1715998239947,-2327.83056448,0.00020444,2]
[327340400,1715998239956,-5449.71722215,0.00020444,2]
[327340401,1715998239966,-687.25874927,0.00020445,2]
[327340403,1715998239975,-2000.0,0.00020446,2]
[327340405,1715998239986,-200.0,0.00020446,2]
[327340408,1715998239997,-2000.0,0.00020446,2]
[327340410,1715998240008,-200.0,0.00020446,2]
[327340412,1715998240017,-200.0,0.00020446,2]
[327340414,1715998240026,-2262.53949,0.00020446,2]
[327340416,1715998240036,-200.0,0.00020446,2]
[327340418,1715998240046,-449.74,0.00020447,2]
[327340420,1715998240056,-162.74553452,0.00020461,2]
[327340422,1715998240065,-167.0,0.00020562,2]
[327340425,1715998240075,-2000.0,0.0002065,2]
[327340428,1715998240084,-200.0,0.0002065,2]
[327340431,1715998240094,-2000.0,0.0002065,2]
[327340434,1715998240103,-200.0,0.0002065,2]
[327340437,1715998240113,-200.0,0.0002065,2]
[327340440,1715998240122,-200.0,0.0002065,2]
[327340443,1715998240132,-151.25,0.00020807,2]
[327340446,1715998240142,-2000.0,0.00020857,2]
[327340449,1715998240152,-200.0,0.00020857,2]
[327340451,1715998240161,-2000.0,0.00020857,2]
[327340454,1715998240171,-200.0,0.00020857,2]
[327340457,1715998240180,-200.0,0.00020857,2]
[327340460,1715998240190,-200.0,0.00020857,2]
[327340463,1715998240199,-241.09825198,0.00020878,2]
[327340466,1715998240209,-18956.57599024,0.00020966,2]
[327340469,1715998240219,-167.0,0.00020978,2]
[327340472,1715998240228,-717.49719888,0.00021,2]
[327340475,1715998240238,-2000.0,0.00021,2]
[327340478,1715998240248,-2000.0,0.0002101,2]
[327340481,1715998240257,-2000.0,0.0002102,2]
[327340484,1715998240267,-3054.228642,0.0002103,2]
[327340487,1715998240276,-2000.0,0.00021066,2]
[327340490,1715998240285,-200.0,0.00021066,2]
[327340493,1715998240295,-2000.0,0.00021066,2]
[327340496,1715998240305,-200.0,0.00021066,2]
[327340499,1715998240315,-200.0,0.00021066,2]
[327340502,1715998240325,-157.21497591,0.00021066,2]
[327340505,1715998240335,-200.0,0.00021066,2]
[327340508,1715998240345,-186.58,0.00021202,2]
[327340512,1715998240356,-961.6,0.00021207,2]
[327340515,1715998240365,-154.69808121,0.00021229,2]
[327340518,1715998240375,-162.74553452,0.00021264,2]
[327340521,1715998240384,-2000.0,0.00021276,2]
[327340523,1715998240394,-200.0,0.00021276,2]
[327340526,1715998240404,-200.0,0.00021276,2]
[327340529,1715998240413,-200.0,0.00021276,2]
[327340532,1715998240423,-200.0,0.00021276,2]
[327340535,1715998240432,-152.14642822,0.00021436,2]
[327340538,1715998240442,-167.0,0.0002159,2]
[327340541,1715998240451,-167.0,0.00021635,2]
[327340544,1715998240461,-150.59726954,0.00021669,2]
[327340547,1715998240471,-162.74553453,0.00021671,2]
[327340550,1715998240481,-179.0,0.0002173,2]
[327340553,1715998240492,-206.871,0.0002173,2]
[327340556,1715998240505,-1642.0,0.0002173,2]
[327340559,1715998240514,-1270.312,0.0002173,2]
[327340562,1715998240524,-1234.211,0.0002173,2]
[327340567,1715998240539,-550.532,0.0002173,2]
[327340570,1715998240554,-1651.12,0.0002173,2]
[327340573,1715998240564,-216.0,0.0002173,2]
[327340576,1715998240575,-1131.983,0.0002173,2]
[327340579,1715998240586,-3163.684,0.0002173,2]
[327340582,1715998240597,-3526.798,0.0002173,2]
[327340585,1715998240607,-289.674,0.0002173,2]
[327340588,1715998240617,-3880.3,0.0002173,2]
[327340591,1715998240627,-6767.13708574,0.000219,2]
[327340594,1715998240637,-882.0,0.00021918,2]
[327340597,1715998240647,-2000.0,0.00021918,2]
[327340600,1715998240656,-405.9,0.00021918,2]
[327340604,1715998240666,-3944.75297171,0.00021997,2]
[327340607,1715998240676,-5520.28770876,0.00022,2]
[327340610,1715998240686,-150.59726954,0.00022141,2]
[327340613,1715998240695,-500.0,0.00022162,2]
[327340616,1715998240704,-500.0,0.0002217,2]
[327340619,1715998240714,-500.0,0.00022179,2]
[327340621,1715998240723,-5006.26337166,0.00022183,2]
[327340624,1715998240732,-495.48525126,0.00022187,2]
[327340627,1715998240742,-640.0,0.00022214,2]
[327340630,1715998240752,-601.0,0.00022214,2]
[327340633,1715998240763,-640.0,0.00022443,2]
[327340636,1715998240772,-601.0,0.00022443,2]
[327340639,1715998240782,-157.21497591,0.00022504,2]
[327340642,1715998240792,-354.12,0.00022562,2]
[327340645,1715998240801,-640.0,0.00022672,2]
[327340648,1715998240811,-601.0,0.00022672,2]
[327340651,1715998240820,-167.0,0.00022707,2]
[327340654,1715998240830,-157.21497591,0.00022712,2]
[327340657,1715998240839,-2100.0,0.00022741,2]
[327340659,1715998240848,-159.94,0.00022848,2]
[327340661,1715998240858,-640.0,0.00022901,2]
[327340663,1715998240868,-604.58061666,0.00022901,2]
[327340666,1715998240877,-979.16936557,0.00022901,2]
[327340668,1715998240887,-601.0,0.00022901,2]
[327340671,1715998240896,-1252.45947273,0.00022901,2]
[327340675,1715998240905,-176.726002,0.00022917,2]
[327340678,1715998240915,-5456.33229,0.00022917,2]
[327340681,1715998240924,-219.373617,0.00022917,2]
[327340684,1715998240934,-164.192311,0.00022917,2]
[327340687,1715998240943,-3285.589339,0.00022917,2]
[327340690,1715998240954,-7582.588269,0.00022917,2]
[327340693,1715998240962,-5000.644077,0.00022917,2]
[327340697,1715998240978,-163.544014,0.00022917,2]
[327340701,1715998240991,-227.017448,0.00022917,2]
[327340705,1715998241005,-957.084719,0.00022917,2]
[327340708,1715998241018,-1032.891819,0.00022917,2]
[327340712,1715998241031,-201.465729,0.00022917,2]
[327340716,1715998241043,-199.135903,0.00022917,2]
[327340719,1715998241055,-1217.589746,0.00022917,2]
[327340722,1715998241066,-180.987229,0.00022917,2]
[327340726,1715998241077,-268.249078,0.00022917,2]
[327340729,1715998241090,-801.855049,0.00022917,2]
[327340733,1715998241102,-2333.645613,0.00022917,2]
[327340737,1715998241113,-275.378802,0.00022917,2]
[327340740,1715998241125,-188.462909,0.00022917,2]
[327340744,1715998241137,-193.446387,0.00022917,2]
[327340747,1715998241149,-155.0,0.00023,2]
[327340751,1715998241162,-157.21497591,0.00023059,2]
[327340754,1715998241173,-271.02278993,0.00023103,2]
[327340758,1715998241185,-640.0,0.0002313,2]
[327340762,1715998241197,-601.0,0.0002313,2]
[327340765,1715998241211,-500.0,0.0002314,2]
[327340769,1715998241222,-500.0,0.0002314,2]
[327340773,1715998241234,-500.0,0.0002314,2]
[327340776,1715998241246,-500.0,0.0002314,2]
[327340779,1715998241257,-500.0,0.0002314,2]
[327340782,1715998241267,-500.0,0.0002314,2]
[327340786,1715998241279,-5456.33229,0.00023203,2]
[327340790,1715998241291,-219.373617,0.00023203,2]
[327340793,1715998241303,-164.192311,0.00023203,2]
[327340795,1715998241315,-3285.589339,0.00023203,2]
[327340798,1715998241327,-7582.588269,0.00023203,2]
[327340800,1715998241339,-5000.644077,0.00023203,2]
[327340801,1715998241349,-957.084719,0.00023203,2]
[327340802,1715998241360,-1032.891819,0.00023203,2]
[327340803,1715998241372,-1217.589746,0.00023203,2]
[327340804,1715998241382,-268.249078,0.00023203,2]
[327340805,1715998241392,-801.855049,0.00023203,2]
[327340806,1715998241405,-2333.645613,0.00023203,2]
[327340807,1715998241417,-180.987229,0.00023299,2]
[327340808,1715998241428,-186.58,0.00023322,2]
[327340809,1715998241439,-961.6,0.00023328,2]
[327340810,1715998241450,-640.0,0.00023359,2]
[327340811,1715998241461,-601.0,0.00023359,2]
[327340812,1715998241473,-2003.50782915,0.000234,2]
[327340813,1715998241485,-10176.0,0.000234,4]
[327340814,1715998241498,-5456.33229,0.0002349,2]
[327340815,1715998241511,-219.373617,0.0002349,2]
[327340816,1715998241524,-164.192311,0.0002349,2]
[327340817,1715998241538,-3285.589339,0.0002349,2]
[327340818,1715998241551,-7582.588269,0.0002349,2]
[327340819,1715998241564,-5000.644077,0.0002349,2]
[327340820,1715998241577,-957.084719,0.0002349,2]
[327340821,1715998241587,-1032.891819,0.0002349,2]
[327340822,1715998241597,-1217.589746,0.0002349,2]
[327340823,1715998241607,-268.249078,0.0002349,2]
[327340824,1715998241616,-801.855049,0.0002349,2]
[327340825,1715998241627,-2333.645613,0.0002349,2]
[327340826,1715998241638,-158.04094423,0.00023567,2]
[327340827,1715998241649,-640.0,0.00023588,2]
[327340828,1715998241660,-601.0,0.00023588,2]
[327340829,1715998241672,-157.21497591,0.00023599,2]
[327340830,1715998241683,-180.987229,0.00023681,2]
[327340831,1715998241697,-5456.33229,0.00023776,2]
[327340832,1715998241707,-219.373617,0.00023776,2]
[327340833,1715998241718,-164.192311,0.00023776,2]
[327340834,1715998241728,-3285.589339,0.00023776,2]
[327340835,1715998241738,-7582.588269,0.00023776,2]
[327340836,1715998241749,-5000.644077,0.00023776,2]
[327340837,1715998241760,-957.084719,0.00023776,2]
[327340838,1715998241772,-1032.891819,0.00023776,2]
[327340839,1715998241786,-1217.589746,0.00023776,2]
[327340840,1715998241798,-268.249078,0.00023776,2]
[327340841,1715998241808,-801.855049,0.00023776,2]
[327340842,1715998241819,-2333.645613,0.00023776,2]
[327340843,1715998241830,-432.75692337,0.00024,2]
[327340844,1715998241840,-176.726002,0.00024063,2]
[327340845,1715998241849,-5456.33229,0.00024063,2]
[327340846,1715998241861,-219.373617,0.00024063,2]
[327340847,1715998241871,-164.192311,0.00024063,2]
[327340848,1715998241882,-3285.589339,0.00024063,2]
[327340849,1715998241892,-7582.588269,0.00024063,2]
[327340851,1715998241902,-5000.644077,0.00024063,2]
[327340853,1715998241914,-957.084719,0.00024063,2]
[327340854,1715998241925,-1032.891819,0.00024063,2]
[327340855,1715998241936,-1217.589746,0.00024063,2]
[327340856,1715998241948,-268.249078,0.00024063,2]
[327340857,1715998241959,-801.855049,0.00024063,2]
[327340858,1715998241970,-2333.645613,0.00024063,2]
[327340859,1715998241981,-180.987229,0.00024063,2]
[327340860,1715998241992,-152.14642825,0.00024097,2]
[327340861,1715998242004,-174.76,0.00024329,15]
[327340862,1715998242016,-160.567,0.0002473,2]
[327340863,1715998242028,-354.12,0.00024826,2]
[327340864,1715998242040,-663.0,0.00024866,2]
[327340865,1715998242051,-154.75954021,0.00024911,2]
[327340866,1715998242064,-9148.79926231,0.0002499,2]
[327340867,1715998242076,-1618.60360898,0.00025,10]
[327340868,1715998242089,-926.12875824,0.00025,2]
[327340869,1715998242100,-321.99463947,0.00025,30]
[327340870,1715998242111,-155.0,0.00025,2]
[327340871,1715998242124,-575.12287039,0.00025,14]
[327340872,1715998242135,-224.1230564,0.00025,2]
[327340873,1715998242146,-155.0,0.00025,2]
[327340874,1715998242157,-154.49731188,0.0002509,120]
[327340875,1715998242168,-150.79375316,0.0002517,2]
[327340876,1715998242179,-186.58,0.00025442,120]
[327340877,1715998242190,-2262.5395,0.00025446,2]
[327340878,1715998242201,-961.6,0.00025448,2]
[327340879,1715998242212,-1375.0,0.000256,2]
[327340880,1715998242223,-350.62566893,0.00025756,3]
[327340881,1715998242234,-3944.75297171,0.00025796,2]
[327340882,1715998242245,-157.28504738,0.00025925,2]
[327340883,1715998242256,-157.21497597,0.00025965,2]